[Event "*** Titled Tuesday Blitz"]
[Site "Chess.com"]
[Date "2020.10.27"]
[Round "9"]
[White "vova-79"]
[Black "niki_2003"]
[Result "1-0"]
[WhiteElo "2491"]
[BlackElo "1902"]
[TimeControl "180+1"]
[EndTime "11:44:03 PDT"]
[Termination "vova-79 won by resignation"]

1. d4 {[%clk 0:03:00.9]} 1... Nf6 {[%clk 0:02:56.1]} 2. c4 {[%clk 0:02:59.5]}
2... e6 {[%clk 0:02:56.3]} 3. Nc3 {[%clk 0:02:58.5]} 3... Bb4 {[%clk 0:02:56.7]}
4. e3 {[%clk 0:02:57.6]} 4... c5 {[%clk 0:02:57.1]} 5. Ne2 {[%clk 0:02:56.9]}
5... Nc6 {[%clk 0:02:56.9]} 6. a3 {[%clk 0:02:56.4]} 6... Qa5 {[%clk 0:02:53.3]}
7. dxc5 {[%clk 0:02:49.5]} 7... Bxc5 {[%clk 0:02:41.5]} 8. g3 {[%clk 0:02:35.3]}
8... a6 {[%clk 0:02:40.1]} 9. Bg2 {[%clk 0:02:34]} 9... O-O {[%clk 0:02:37.5]}
10. O-O {[%clk 0:02:32.5]} 10... Qc7 {[%clk 0:02:31.8]} 11. b4 {[%clk
0:02:28.3]} 11... Be7 {[%clk 0:02:30]} 12. Bb2 {[%clk 0:02:27.1]} 12... Rb8
{[%clk 0:02:29.5]} 13. Rc1 {[%clk 0:02:24.5]} 13... b5 {[%clk 0:02:28.9]} 14.
Nd5 {[%clk 0:02:09.5]} 14... exd5 {[%clk 0:02:22.7]} 15. cxd5 {[%clk 0:02:10.4]}
15... Bb7 {[%clk 0:02:16.1]} 16. dxc6 {[%clk 0:02:08.6]} 16... dxc6 {[%clk
0:02:15.9]} 17. Nd4 {[%clk 0:02:06]} 17... c5 {[%clk 0:02:09.7]} 18. bxc5 {[%clk
0:02:03.8]} 18... Bxg2 {[%clk 0:02:07.5]} 19. Kxg2 {[%clk 0:02:03.1]} 19... Bxc5
{[%clk 0:02:07.8]} 20. Qf3 {[%clk 0:02:00.1]} 20... Qa7 {[%clk 0:02:01.7]} 21.
Nc6 {[%clk 0:01:57.1]} 21... Qb6 {[%clk 0:01:53.5]} 22. Nxb8 {[%clk 0:01:41.3]}
22... Rxb8 {[%clk 0:01:51.5]} 23. Rc2 {[%clk 0:01:40.8]} 23... Be7 {[%clk
0:01:47.4]} 24. Rfc1 {[%clk 0:01:38.7]} 24... h6 {[%clk 0:01:44.2]} 25. Qc6
{[%clk 0:01:18.6]} 25... Qxc6+ {[%clk 0:01:38.7]} 26. Rxc6 {[%clk 0:01:16.7]}
26... a5 {[%clk 0:01:38.4]} 27. Rc8+ {[%clk 0:01:14.8]} 27... Rxc8 {[%clk
0:01:37.9]} 28. Rxc8+ {[%clk 0:01:15.7]} 28... Kh7 {[%clk 0:01:34.8]} 29. Rb8
{[%clk 0:01:14.5]} 29... b4 {[%clk 0:01:34.8]} 30. axb4 {[%clk 0:01:12.9]} 30...
axb4 {[%clk 0:01:35.2]} 31. Bxf6 {[%clk 0:01:10.4]} 31... gxf6 {[%clk
0:01:34.9]} 32. Rb7 {[%clk 0:01:09.3]} 32... Bc5 {[%clk 0:01:34.5]} 33. Rxf7+
{[%clk 0:01:07.2]} 33... Kg6 {[%clk 0:01:35]} 34. Rb7 {[%clk 0:01:06.1]} 34...
Kf5 {[%clk 0:01:15.9]} 35. Rb5 {[%clk 0:01:03.2]} 35... Ke4 {[%clk 0:01:16.4]}
36. Rxc5 {[%clk 0:01:01.1]} 36... Kd3 {[%clk 0:01:17.3]} 37. Rf5 {[%clk
0:00:56.7]} 37... b3 {[%clk 0:01:16.1]} 38. Rxf6 {[%clk 0:00:55.6]} 38... b2
{[%clk 0:01:15.5]} 39. Rb6 {[%clk 0:00:53.7]} 39... Kc2 {[%clk 0:01:15.9]} 40.
e4 {[%clk 0:00:52.3]} 40... b1=Q {[%clk 0:01:15.8]} 41. Rxb1 {[%clk 0:00:50.4]}
1-0

[Event "*** Titled Tuesday Blitz"]
[Site "Chess.com"]
[Date "2020.10.27"]
[Round "9"]
[White "Nils_03"]
[Black "Rital44"]
[Result "1-0"]
[WhiteElo "2265"]
[BlackElo "2453"]
[TimeControl "180+1"]
[EndTime "11:44:04 PDT"]
[Termination "Nils_03 won by resignation"]

1. Nf3 {[%clk 0:03:00.9]} 1... Nf6 {[%clk 0:01:47.4]} 2. g3 {[%clk 0:03:01.8]}
2... g6 {[%clk 0:01:47.1]} 3. Bg2 {[%clk 0:03:01.8]} 3... Bg7 {[%clk 0:01:48]}
4. O-O {[%clk 0:03:02.6]} 4... d6 {[%clk 0:01:44.3]} 5. d4 {[%clk 0:03:01.3]}
5... O-O {[%clk 0:01:45.2]} 6. c4 {[%clk 0:03:01.2]} 6... c6 {[%clk 0:01:46.1]}
7. Nc3 {[%clk 0:03:00.7]} 7... Qa5 {[%clk 0:01:46.7]} 8. e4 {[%clk 0:02:57.6]}
8... Qh5 {[%clk 0:01:46.7]} 9. Bf4 {[%clk 0:02:48.3]} 9... Bh3 {[%clk
0:01:46.8]} 10. e5 {[%clk 0:02:46.9]} 10... Ng4 {[%clk 0:01:46.3]} 11. exd6
{[%clk 0:02:40.6]} 11... exd6 {[%clk 0:01:47.2]} 12. Bxd6 {[%clk 0:02:40.3]}
12... Rd8 {[%clk 0:01:47.7]} 13. c5 {[%clk 0:02:37.2]} 13... Nd7 {[%clk
0:01:46.8]} 14. Ne4 {[%clk 0:02:24.7]} 14... Ndf6 {[%clk 0:01:44.2]} 15. Neg5
{[%clk 0:02:22.9]} 15... Bxg2 {[%clk 0:01:43.4]} 16. Kxg2 {[%clk 0:02:23.8]}
16... h6 {[%clk 0:01:43.8]} 17. Nh3 {[%clk 0:02:18.6]} 17... Qd5 {[%clk
0:01:42.3]} 18. Nf4 {[%clk 0:02:17.5]} 18... Qe4 {[%clk 0:01:39.2]} 19. h3
{[%clk 0:02:15.9]} 19... h5 {[%clk 0:01:37.4]} 20. Re1 {[%clk 0:02:12.6]} 20...
Qf5 {[%clk 0:01:37.1]} 21. hxg4 {[%clk 0:02:08.2]} 21... hxg4 {[%clk 0:01:38]}
22. Ne5 {[%clk 0:02:05.5]} 22... Ne4 {[%clk 0:01:30.7]} 23. Qxg4 {[%clk
0:02:03.1]} 23... Nxd6 {[%clk 0:01:24.9]} 24. cxd6 {[%clk 0:02:00.9]} 24... Qc2
{[%clk 0:01:20.8]} 25. Nfxg6 {[%clk 0:01:47]} 25... Rxd6 {[%clk 0:01:10.4]} 26.
Ne7+ {[%clk 0:01:44.4]} 26... Kf8 {[%clk 0:01:09.7]} 27. Nf5 {[%clk 0:01:44.2]}
27... Bxe5 {[%clk 0:01:01.2]} 28. dxe5 {[%clk 0:01:44]} 28... Rg6 {[%clk
0:01:00.8]} 29. Qb4+ {[%clk 0:01:43.5]} 29... c5 {[%clk 0:00:52.6]} 30. Qxb7
{[%clk 0:01:42.8]} 30... Re8 {[%clk 0:00:51.4]} 31. Nd6 {[%clk 0:01:31.9]} 31...
Re7 {[%clk 0:00:49.6]} 32. Qc8+ {[%clk 0:01:29.8]} 32... Kg7 {[%clk 0:00:49.6]}
33. Rh1 {[%clk 0:01:30.2]} 33... Rxg3+ {[%clk 0:00:44]} 34. Kxg3 {[%clk
0:01:25.9]} 34... Qg6+ {[%clk 0:00:43.8]} 35. Kf3 {[%clk 0:01:22.3]} 35... Qd3+
{[%clk 0:00:39.1]} 36. Kg2 {[%clk 0:01:20.4]} 36... Qd5+ {[%clk 0:00:38.8]} 37.
Kg1 {[%clk 0:01:18.5]} 1-0

[Event "*** Titled Tuesday Blitz"]
[Site "Chess.com"]
[Date "2020.10.27"]
[Round "9"]
[White "Sankalp_Gupta2003"]
[Black "Natalya_Buksa"]
[Result "1-0"]
[WhiteElo "2713"]
[BlackElo "2545"]
[TimeControl "180+1"]
[EndTime "11:44:11 PDT"]
[Termination "Sankalp_Gupta2003 won by resignation"]

1. e4 {[%clk 0:02:59.6]} 1... c5 {[%clk 0:03:00.1]} 2. Nf3 {[%clk 0:02:57.5]}
2... Nc6 {[%clk 0:03:00.6]} 3. Nc3 {[%clk 0:02:57.2]} 3... e5 {[%clk 0:02:59.7]}
4. Bc4 {[%clk 0:02:56.5]} 4... d6 {[%clk 0:03:00.2]} 5. d3 {[%clk 0:02:56.6]}
5... Be7 {[%clk 0:03:00.6]} 6. O-O {[%clk 0:02:56.5]} 6... Nf6 {[%clk
0:03:01.1]} 7. Ng5 {[%clk 0:02:57.1]} 7... O-O {[%clk 0:03:01.2]} 8. f4 {[%clk
0:02:57.7]} 8... Bg4 {[%clk 0:02:56.5]} 9. Qe1 {[%clk 0:02:56.5]} 9... Nd4
{[%clk 0:02:56.1]} 10. Qf2 {[%clk 0:02:52.5]} 10... h6 {[%clk 0:02:56]} 11. Nf3
{[%clk 0:02:50.3]} 11... Nxf3+ {[%clk 0:02:55.3]} 12. gxf3 {[%clk 0:02:51.2]}
12... Bh3 {[%clk 0:02:55.9]} 13. Re1 {[%clk 0:02:51.5]} 13... exf4 {[%clk
0:02:39.8]} 14. Bxf4 {[%clk 0:02:50.7]} 14... Nh5 {[%clk 0:02:39.6]} 15. Bg3
{[%clk 0:02:51]} 15... Bf6 {[%clk 0:02:38.6]} 16. Kh1 {[%clk 0:02:46.9]} 16...
Bd4 {[%clk 0:02:36]} 17. Qe2 {[%clk 0:02:44.2]} 17... Qg5 {[%clk 0:02:29.3]} 18.
Rg1 {[%clk 0:02:44.2]} 18... Bxg1 {[%clk 0:01:44.8]} 19. Rxg1 {[%clk 0:02:45.1]}
19... Nf4 {[%clk 0:01:45.3]} 20. Qe3 {[%clk 0:02:19.5]} 20... Bg2+ {[%clk
0:01:38]} 21. Rxg2 {[%clk 0:02:16.2]} 21... Nxg2 {[%clk 0:01:38.9]} 22. Qxg5
{[%clk 0:02:16.8]} 22... hxg5 {[%clk 0:01:39.8]} 23. Kxg2 {[%clk 0:02:17.7]}
23... Rfd8 {[%clk 0:01:38.9]} 24. Nb5 {[%clk 0:02:17.5]} 24... a6 {[%clk
0:01:33.3]} 25. Nxd6 {[%clk 0:02:17.5]} 25... Rd7 {[%clk 0:01:33.2]} 26. Bd5
{[%clk 0:02:17.8]} 26... Rad8 {[%clk 0:00:42]} 27. Nxb7 {[%clk 0:02:05.2]} 27...
Rc8 {[%clk 0:00:42.1]} 28. Na5 {[%clk 0:01:59.9]} 28... Kf8 {[%clk 0:00:40.1]}
29. b3 {[%clk 0:01:55]} 29... f5 {[%clk 0:00:34.6]} 30. Be6 {[%clk 0:01:53.6]}
30... Rcd8 {[%clk 0:00:32.3]} 31. Bxd7 {[%clk 0:01:50.2]} 31... Rxd7 {[%clk
0:00:33.2]} 32. exf5 {[%clk 0:01:49.8]} 32... Kf7 {[%clk 0:00:31.8]} 33. Kh3
{[%clk 0:01:46.9]} 33... Kf6 {[%clk 0:00:30.8]} 34. Kg4 {[%clk 0:01:46.5]} 34...
Rd4+ {[%clk 0:00:24.7]} 35. f4 {[%clk 0:01:41]} 35... gxf4 {[%clk 0:00:24.8]}
36. Bxf4 {[%clk 0:01:41.9]} 36... Rd5 {[%clk 0:00:21.5]} 37. Bg5+ {[%clk
0:01:41.8]} 37... Ke5 {[%clk 0:00:20.1]} 38. Nc4+ {[%clk 0:01:38.6]} 38... Kd4
{[%clk 0:00:19.6]} 39. h4 {[%clk 0:01:37.1]} 39... Kc3 {[%clk 0:00:18.9]} 40. h5
{[%clk 0:01:37.6]} 40... Rd8 {[%clk 0:00:18.8]} 41. Bxd8 {[%clk 0:01:37.1]} 1-0

[Event "*** Titled Tuesday Blitz"]
[Site "Chess.com"]
[Date "2020.10.27"]
[Round "9"]
[White "SilviusTiberius"]
[Black "WildTricks"]
[Result "0-1"]
[WhiteElo "2513"]
[BlackElo "2411"]
[TimeControl "180+1"]
[EndTime "11:44:11 PDT"]
[Termination "WildTricks won by resignation"]

1. e4 {[%clk 0:03:00.9]} 1... c5 {[%clk 0:02:58.8]} 2. Nf3 {[%clk 0:03:00.1]}
2... d6 {[%clk 0:02:59.1]} 3. d4 {[%clk 0:03:00.2]} 3... cxd4 {[%clk 0:02:59.7]}
4. Nxd4 {[%clk 0:03:00.8]} 4... Nf6 {[%clk 0:03:00.3]} 5. Nc3 {[%clk 0:03:01.1]}
5... a6 {[%clk 0:03:00.9]} 6. Be3 {[%clk 0:03:01.3]} 6... e5 {[%clk 0:03:01.1]}
7. Nb3 {[%clk 0:03:01.6]} 7... Be6 {[%clk 0:03:01.5]} 8. Qd2 {[%clk 0:03:01.7]}
8... Nbd7 {[%clk 0:03:00.1]} 9. f3 {[%clk 0:03:00.4]} 9... h5 {[%clk 0:02:59.4]}
10. Nd5 {[%clk 0:02:59.6]} 10... Bxd5 {[%clk 0:02:59.9]} 11. exd5 {[%clk
0:03:00.5]} 11... g6 {[%clk 0:03:00.5]} 12. Na5 {[%clk 0:02:51.7]} 12... Qc7
{[%clk 0:02:55.4]} 13. c4 {[%clk 0:02:51.3]} 13... Bg7 {[%clk 0:02:53.1]} 14.
Rc1 {[%clk 0:02:49.1]} 14... e4 {[%clk 0:02:52.3]} 15. Be2 {[%clk 0:02:39.6]}
15... exf3 {[%clk 0:02:52.3]} 16. Bxf3 {[%clk 0:02:40.2]} 16... O-O {[%clk
0:02:51.6]} 17. O-O {[%clk 0:02:37.1]} 17... Rfe8 {[%clk 0:02:49]} 18. b4 {[%clk
0:02:34.8]} 18... Ne4 {[%clk 0:02:34.4]} 19. Bxe4 {[%clk 0:02:09.5]} 19... Rxe4
{[%clk 0:02:35.3]} 20. Bf2 {[%clk 0:01:36.7]} 20... Rae8 {[%clk 0:02:31.2]} 21.
Rc2 {[%clk 0:01:37.2]} 21... Ne5 {[%clk 0:02:21.4]} 22. c5 {[%clk 0:01:33.2]}
22... Ng4 {[%clk 0:02:16.1]} 23. Bg3 {[%clk 0:00:50.6]} 23... Ne3 {[%clk
0:02:12.3]} 24. Bxd6 {[%clk 0:00:45.8]} 24... Qd7 {[%clk 0:01:58.7]} 25. Rcc1
{[%clk 0:00:37.8]} 25... Nxf1 {[%clk 0:01:43.4]} 26. Rxf1 {[%clk 0:00:38.7]}
26... Bd4+ {[%clk 0:01:42.7]} 27. Kh1 {[%clk 0:00:38.7]} 27... Qf5 {[%clk
0:01:39.2]} 28. Rd1 {[%clk 0:00:31.1]} 28... Qxd5 {[%clk 0:01:08.8]} 0-1

[Event "*** Titled Tuesday Blitz"]
[Site "Chess.com"]
[Date "2020.10.27"]
[Round "9"]
[White "alexwinter25"]
[Black "Shuvalov"]
[Result "0-1"]
[WhiteElo "2319"]
[BlackElo "2496"]
[TimeControl "180+1"]
[EndTime "11:44:17 PDT"]
[Termination "Shuvalov won by resignation"]

1. e4 {[%clk 0:03:00.9]} 1... e6 {[%clk 0:02:48.6]} 2. d4 {[%clk 0:03:00.5]}
2... d5 {[%clk 0:02:48.2]} 3. exd5 {[%clk 0:03:01.4]} 3... exd5 {[%clk
0:02:47.9]} 4. c4 {[%clk 0:03:02.3]} 4... Nf6 {[%clk 0:02:47.2]} 5. Nc3 {[%clk
0:03:02.8]} 5... Be7 {[%clk 0:02:47]} 6. Bd3 {[%clk 0:03:02.9]} 6... dxc4 {[%clk
0:02:46.4]} 7. Bxc4 {[%clk 0:03:03.8]} 7... O-O {[%clk 0:02:46.2]} 8. Nge2
{[%clk 0:03:04.3]} 8... Nbd7 {[%clk 0:02:45.9]} 9. O-O {[%clk 0:03:04.1]} 9...
Nb6 {[%clk 0:02:46]} 10. Bb3 {[%clk 0:03:04.5]} 10... c6 {[%clk 0:02:45.8]} 11.
Bf4 {[%clk 0:02:58.5]} 11... Nbd5 {[%clk 0:02:44.4]} 12. Bg3 {[%clk 0:02:57.1]}
12... Be6 {[%clk 0:02:43]} 13. Re1 {[%clk 0:02:56.1]} 13... Re8 {[%clk
0:02:39.2]} 14. Nf4 {[%clk 0:02:41.5]} 14... Nxf4 {[%clk 0:02:35.5]} 15. Bxf4
{[%clk 0:02:42.4]} 15... Nd5 {[%clk 0:02:33.3]} 16. Bg3 {[%clk 0:02:40.6]} 16...
Bb4 {[%clk 0:02:28.3]} 17. Qf3 {[%clk 0:02:37.4]} 17... Qa5 {[%clk 0:02:26.4]}
18. Re5 {[%clk 0:02:13.3]} 18... Bxc3 {[%clk 0:02:16]} 19. bxc3 {[%clk
0:02:03.1]} 19... Qxc3 {[%clk 0:02:06.2]} 20. Qxc3 {[%clk 0:01:59.3]} 20... Nxc3
{[%clk 0:02:07.1]} 21. Rae1 {[%clk 0:01:45.2]} 21... Nd5 {[%clk 0:01:35.9]} 22.
Bxd5 {[%clk 0:01:44.7]} 22... cxd5 {[%clk 0:01:36.8]} 23. Rb1 {[%clk 0:01:44.2]}
23... b6 {[%clk 0:01:34.5]} 24. Rc1 {[%clk 0:01:41.5]} 24... Rec8 {[%clk
0:01:33.6]} 25. Ree1 {[%clk 0:01:41.5]} 25... Rc4 {[%clk 0:01:29.1]} 26. Be5
{[%clk 0:01:34.5]} 26... Rac8 {[%clk 0:01:28.4]} 27. Rxc4 {[%clk 0:01:28.4]}
27... dxc4 {[%clk 0:01:29.3]} 28. Rc1 {[%clk 0:01:27.3]} 28... Bd5 {[%clk
0:01:25.1]} 29. f3 {[%clk 0:01:27.2]} 29... c3 {[%clk 0:01:22.5]} 30. a3 {[%clk
0:01:24.9]} 30... Rc6 {[%clk 0:01:19.2]} 31. Kf2 {[%clk 0:01:24.6]} 31... b5
{[%clk 0:01:18.5]} 32. Ke3 {[%clk 0:01:23.1]} 32... a5 {[%clk 0:01:18.2]} 33.
Kd3 {[%clk 0:01:14.9]} 33... b4 {[%clk 0:01:18.2]} 34. axb4 {[%clk 0:01:10.5]}
34... axb4 {[%clk 0:01:19.1]} 35. Bf4 {[%clk 0:01:08.5]} 35... b3 {[%clk
0:00:58.9]} 36. Rxc3 {[%clk 0:01:00]} 36... b2 {[%clk 0:00:58.9]} 37. Rxc6
{[%clk 0:00:41.7]} 37... b1=Q+ {[%clk 0:00:58.2]} 0-1

[Event "*** Titled Tuesday Blitz"]
[Site "Chess.com"]
[Date "2020.10.27"]
[Round "9"]
[White "Volodar_Murzin"]
[Black "A-Fier"]
[Result "0-1"]
[WhiteElo "2613"]
[BlackElo "2765"]
[TimeControl "180+1"]
[EndTime "11:44:19 PDT"]
[Termination "A-Fier won on time"]

1. e4 {[%clk 0:03:00.9]} 1... c5 {[%clk 0:02:58.5]} 2. Nf3 {[%clk 0:03:00.5]}
2... Nf6 {[%clk 0:02:56.9]} 3. e5 {[%clk 0:02:52.8]} 3... Nd5 {[%clk 0:02:56.5]}
4. c4 {[%clk 0:02:48.7]} 4... Nc7 {[%clk 0:02:51]} 5. d4 {[%clk 0:02:47.9]} 5...
cxd4 {[%clk 0:02:49.8]} 6. Qxd4 {[%clk 0:02:48.8]} 6... Nc6 {[%clk 0:02:50.2]}
7. Qe4 {[%clk 0:02:46.6]} 7... g6 {[%clk 0:02:49.5]} 8. Nc3 {[%clk 0:02:45.6]}
8... Bg7 {[%clk 0:02:49.5]} 9. Be3 {[%clk 0:02:42.6]} 9... Ne6 {[%clk 0:02:48]}
10. O-O-O {[%clk 0:02:26.9]} 10... Qa5 {[%clk 0:02:46.2]} 11. Rd5 {[%clk
0:02:23.7]} 11... Qc7 {[%clk 0:02:46.5]} 12. Be2 {[%clk 0:02:09.6]} 12... a6
{[%clk 0:02:46.5]} 13. Rhd1 {[%clk 0:02:07.7]} 13... b5 {[%clk 0:02:46.7]} 14.
cxb5 {[%clk 0:02:03.4]} 14... axb5 {[%clk 0:02:47.6]} 15. Bxb5 {[%clk
0:02:01.8]} 15... O-O {[%clk 0:02:46.6]} 16. Kb1 {[%clk 0:01:39.8]} 16... Rb8
{[%clk 0:02:24.9]} 17. Ka1 {[%clk 0:01:26.6]} 17... d6 {[%clk 0:02:20.1]} 18.
Qc4 {[%clk 0:01:16.2]} 18... Nxe5 {[%clk 0:02:06.3]} 19. Nxe5 {[%clk 0:01:11]}
19... Bxe5 {[%clk 0:02:05.6]} 20. Rxe5 {[%clk 0:00:58.1]} 20... dxe5 {[%clk
0:02:00.4]} 21. Nd5 {[%clk 0:00:54.9]} 21... Qb7 {[%clk 0:01:51.7]} 22. a4
{[%clk 0:00:47.3]} 22... Kg7 {[%clk 0:01:50.9]} 23. f4 {[%clk 0:00:36.2]} 23...
Bd7 {[%clk 0:01:45.4]} 24. Nb6 {[%clk 0:00:22.7]} 24... Bxb5 {[%clk 0:01:39.4]}
25. Qxb5 {[%clk 0:00:23.6]} 25... exf4 {[%clk 0:01:39.6]} 26. Bg1 {[%clk
0:00:22.9]} 26... Qe4 {[%clk 0:01:34.3]} 27. a5 {[%clk 0:00:20.4]} 27... Rfd8
{[%clk 0:01:30.8]} 28. Rc1 {[%clk 0:00:18.7]} 28... Nd4 {[%clk 0:01:25.1]} 29.
Qc4 {[%clk 0:00:12.7]} 29... Rxb6 {[%clk 0:01:24.3]} 0-1

[Event "*** Titled Tuesday Blitz"]
[Site "Chess.com"]
[Date "2020.10.27"]
[Round "9"]
[White "MashaFromRussia"]
[Black "politeplayer"]
[Result "0-1"]
[WhiteElo "2365"]
[BlackElo "2233"]
[TimeControl "180+1"]
[EndTime "11:44:28 PDT"]
[Termination "politeplayer won by resignation"]

1. d4 {[%clk 0:03:00.9]} 1... g6 {[%clk 0:02:58.1]} 2. c4 {[%clk 0:03:01]} 2...
Bg7 {[%clk 0:02:58.4]} 3. Nf3 {[%clk 0:03:01.1]} 3... Nf6 {[%clk 0:02:58.6]} 4.
g3 {[%clk 0:03:01.6]} 4... c5 {[%clk 0:02:58.6]} 5. d5 {[%clk 0:03:01.3]} 5...
d6 {[%clk 0:02:57.9]} 6. Bg2 {[%clk 0:03:00.9]} 6... O-O {[%clk 0:02:57.3]} 7.
O-O {[%clk 0:03:01.4]} 7... e6 {[%clk 0:02:56.2]} 8. Nc3 {[%clk 0:03:01.6]} 8...
exd5 {[%clk 0:02:56]} 9. cxd5 {[%clk 0:03:02.5]} 9... Re8 {[%clk 0:02:53.4]} 10.
Nd2 {[%clk 0:03:02.6]} 10... a6 {[%clk 0:02:49.5]} 11. a4 {[%clk 0:03:02.1]}
11... Nbd7 {[%clk 0:02:49.2]} 12. h3 {[%clk 0:03:02.4]} 12... Rb8 {[%clk
0:02:42.7]} 13. a5 {[%clk 0:03:02.7]} 13... b5 {[%clk 0:02:32.6]} 14. axb6
{[%clk 0:03:03.6]} 14... Nxb6 {[%clk 0:02:30.1]} 15. e4 {[%clk 0:03:00.9]} 15...
Nfd7 {[%clk 0:02:25.6]} 16. Re1 {[%clk 0:02:58.5]} 16... c4 {[%clk 0:02:25.2]}
17. Qe2 {[%clk 0:02:58.1]} 17... Ne5 {[%clk 0:02:20.1]} 18. Rf1 {[%clk
0:02:42.9]} 18... Nd3 {[%clk 0:02:14.4]} 19. Nxc4 {[%clk 0:02:32.8]} 19... Nxc4
{[%clk 0:02:11]} 20. Qxd3 {[%clk 0:02:30.2]} 20... Nxb2 {[%clk 0:02:07.8]} 21.
Bxb2 {[%clk 0:02:22.7]} 21... Rxb2 {[%clk 0:02:07.8]} 22. Rfc1 {[%clk
0:02:19.9]} 22... Qb6 {[%clk 0:01:56]} 23. Qf3 {[%clk 0:02:14.9]} 23... Rxf2
{[%clk 0:01:50.1]} 24. Na4 {[%clk 0:02:09.5]} 24... Qa7 {[%clk 0:01:38.1]} 25.
Qxf2 {[%clk 0:01:44.1]} 25... Bd4 {[%clk 0:01:35.8]} 26. Ra2 {[%clk 0:01:44.5]}
26... Bxf2+ {[%clk 0:01:30.8]} 27. Rxf2 {[%clk 0:01:45.4]} 27... Qe3 {[%clk
0:01:28.2]} 28. Rf1 {[%clk 0:01:41.9]} 28... Bd7 {[%clk 0:01:15.1]} 29. Nb2
{[%clk 0:01:39.8]} 29... Bb5 {[%clk 0:01:11.6]} 30. Nd1 {[%clk 0:01:32.7]} 30...
Qxg3 {[%clk 0:00:55.6]} 31. Rf3 {[%clk 0:01:32.6]} 31... Qg5 {[%clk 0:00:48]}
32. Re1 {[%clk 0:01:24.3]} 32... Qd2 {[%clk 0:00:42.7]} 33. Rfe3 {[%clk
0:01:20]} 33... Qd4 {[%clk 0:00:38.1]} 34. Kh1 {[%clk 0:01:12.1]} 34... Rc8
{[%clk 0:00:37.5]} 35. Nf2 {[%clk 0:01:10.3]} 35... Rc1 {[%clk 0:00:33.2]} 36.
Ng4 {[%clk 0:01:07.2]} 36... Qxe3 {[%clk 0:00:30.3]} 0-1

[Event "*** Titled Tuesday Blitz"]
[Site "Chess.com"]
[Date "2020.10.27"]
[Round "9"]
[White "PaulfromSPb"]
[Black "PSvidler"]
[Result "1-0"]
[WhiteElo "2727"]
[BlackElo "2896"]
[TimeControl "180+1"]
[EndTime "11:44:29 PDT"]
[Termination "PaulfromSPb won by resignation"]

1. d4 {[%clk 0:03:00.9]} 1... d6 {[%clk 0:02:59.3]} 2. Nf3 {[%clk 0:02:57.9]}
2... Bg4 {[%clk 0:02:58.3]} 3. e4 {[%clk 0:02:54]} 3... Nf6 {[%clk 0:02:58.2]}
4. Nc3 {[%clk 0:02:51.9]} 4... e6 {[%clk 0:02:58.5]} 5. h3 {[%clk 0:02:51.8]}
5... Bh5 {[%clk 0:02:57.9]} 6. g4 {[%clk 0:02:49.8]} 6... Bg6 {[%clk 0:02:57.7]}
7. Bd3 {[%clk 0:02:50.7]} 7... c6 {[%clk 0:02:52.5]} 8. Qe2 {[%clk 0:02:48.8]}
8... d5 {[%clk 0:02:42.4]} 9. Bg5 {[%clk 0:02:37.2]} 9... dxe4 {[%clk
0:02:34.3]} 10. Nxe4 {[%clk 0:02:36]} 10... Nbd7 {[%clk 0:02:33.9]} 11. O-O-O
{[%clk 0:02:31.8]} 11... Qa5 {[%clk 0:02:32.8]} 12. Kb1 {[%clk 0:02:24]} 12...
Be7 {[%clk 0:02:20]} 13. Bd2 {[%clk 0:02:08.2]} 13... Qc7 {[%clk 0:02:19.4]} 14.
h4 {[%clk 0:01:59.9]} 14... Bxe4 {[%clk 0:02:14.3]} 15. Bxe4 {[%clk 0:01:59.2]}
15... Nxe4 {[%clk 0:02:15.2]} 16. Qxe4 {[%clk 0:01:58.6]} 16... Nf6 {[%clk
0:02:15.9]} 17. Qe2 {[%clk 0:01:45.1]} 17... Nxg4 {[%clk 0:02:15.8]} 18. h5
{[%clk 0:01:30.3]} 18... O-O-O {[%clk 0:01:55.2]} 19. Rdg1 {[%clk 0:01:23.1]}
19... f5 {[%clk 0:01:54.9]} 20. Qxe6+ {[%clk 0:01:22.4]} 20... Qd7 {[%clk
0:01:55]} 21. Qe2 {[%clk 0:01:12.1]} 21... Rhe8 {[%clk 0:01:53.3]} 22. Qf1
{[%clk 0:01:09.2]} 22... Qd5 {[%clk 0:01:51.9]} 23. Rh3 {[%clk 0:01:06.7]} 23...
Bf6 {[%clk 0:01:50.5]} 24. Bc3 {[%clk 0:01:00.1]} 24... Re4 {[%clk 0:01:40.2]}
25. Ne5 {[%clk 0:00:50]} 25... Nxe5 {[%clk 0:01:13.3]} 26. dxe5 {[%clk
0:00:48.5]} 26... Bxe5 {[%clk 0:01:14.2]} 27. Rd3 {[%clk 0:00:48.4]} 27... Qe6
{[%clk 0:01:12.1]} 28. f3 {[%clk 0:00:37.1]} 28... Rxd3 {[%clk 0:01:06.5]} 29.
Qxd3 {[%clk 0:00:32.4]} 29... Rh4 {[%clk 0:01:05]} 30. Qe3 {[%clk 0:00:21.3]}
30... Rxh5 {[%clk 0:00:53.2]} 31. Bxe5 {[%clk 0:00:18.9]} 31... f4 {[%clk
0:00:53.3]} 32. Bxf4 {[%clk 0:00:18.8]} 1-0